bitfinex-derivatives/quotes_SOLF0:USTF0_20251207
["timestamp","ask_amount","ask_price","bid_price","bid_amount"]
[1765073069469,64.42,132.72,132.69,12.69602357]
[1765073069659,64.42,132.72,132.7,3.34]
[1765073069856,64.42,132.72,132.7,3.39660097]
[1765073070262,64.42,132.72,132.71,3.34]
[1765073070467,64.42,132.72,132.71,12.69602357]
[1765073070769,2.87,132.75,132.71,3.34]
[1765073070956,9.6481,132.76,132.72,3.34]
[1765073071159,2.87,132.76,132.74,3.34]
[1765073071361,2.87,132.77,132.74,3.34]
[1765073077975,2.87,132.77,132.73,0.05185123]
[1765073078571,2.87,132.77,132.73,3.39185123]
[1765073078774,2.87,132.75,132.73,0.05185123]
[1765073086873,67.23,132.74,132.73,0.05185123]
[1765073087080,71.6038705,132.74,132.73,0.05185123]
[1765073092081,2.86,132.73,132.68,3.34]
[1765073092982,2.91293161,132.72,132.69,3.07827666]
[1765073111297,2.87,132.7,132.69,0.04827666]
[1765073111496,67.19,132.7,132.69,0.04827666]
[1765073117296,2.87,132.68,132.64,12.43602357]
[1765073117602,6.7818,132.69,132.64,12.43602357]
[1765073117603,67.19,132.67,132.65,3.05]
[1765073118304,67.24081186,132.67,132.65,3.1002355]
[1765073124906,2.87,132.66,132.65,0.0502355]
[1765073130108,2.87,132.66,132.65,3.1002355]
[1765073130510,2.87,132.66,132.65,0.0502355]
[1765073130705,6.83351186,132.67,132.65,3.1002355]
[1765073130904,2.87,132.7,132.66,3.05]
[1765073131110,67.21,132.71,132.67,3.05]
[1765073131302,2.87,132.7,132.67,12.40602357]
[1765073131912,2.92620503,132.7,132.67,12.46227423]
[1765073132504,2.87,132.69,132.67,12.46227423]
[1765073137105,2.92620503,132.7,132.68,3.05]
[1765073137305,64.37620503,132.7,132.68,3.05]
[1765073137507,2.92620503,132.7,132.68,3.05]
[1765073137710,67.26620503,132.7,132.68,3.05]
[1765073138214,70.06382544,132.7,132.68,3.05]
[1765073138416,2.87,132.69,132.67,12.46227423]
[1765073138715,2.87,132.69,132.67,0.05625066]
[1765073139414,5.66762041,132.68,132.67,0.05625066]
[1765073147422,2.87,132.68,132.67,0.05625066]
[1765073148823,67.21,132.68,132.67,3.35625066]
[1765073149023,67.21,132.68,132.67,0.05625066]
[1765073186265,105.5138,132.66,132.65,9.4148179]
[1765073186467,105.5306,132.64,132.58,3.34]
[1765073186763,68.73407373,132.63,132.58,3.34]
[1765073186964,75.51887373,132.63,132.58,3.34]
[1765073187353,0.04934593,132.62,132.59,0.05326891]
[1765073187559,64.36,132.61,132.59,3.39326891]
[1765073187966,64.36,132.61,132.59,0.05326891]
[1765073189366,68.73407373,132.61,132.59,0.05326891]
[1765073203461,64.36,132.61,132.59,0.05326891]
[1765073216383,2.80290703,132.6,132.59,0.05326891]
[1765073223786,0.04934593,132.62,132.59,3.13326891]
[1765073223987,0.04934593,132.62,132.6,3.08]
[1765073224293,2.80290703,132.66,132.6,3.08]
[1765073225090,0.05620139,132.64,132.63,3.08]
[1765073233394,6.7811,132.7,132.64,3.08]
[1765073233591,64.34,132.69,132.64,3.08]
[1765073233785,67.14290703,132.69,132.64,3.08]
[1765073234386,67.14290703,132.69,132.66,3.08]
[1765073238604,64.34,132.69,132.66,3.08]
[1765073238798,67.14290703,132.69,132.66,3.08]
[1765073239901,2.80290703,132.67,132.65,0.05255733]
[1765073242700,64.32,132.66,132.65,0.05255733]
[1765073244807,71.1035,132.66,132.59,3.25]
[1765073245010,2.80290703,132.62,132.59,3.25]
[1765073245711,2.85817062,132.62,132.59,3.30763249]
[1765073262931,9.64347062,132.62,132.59,3.30763249]
[1765073263127,9.64347062,132.62,132.59,0.05763249]
[1765073263631,6.7859,132.61,132.59,0.05763249]
[1765073263833,64.34,132.6,132.59,0.05763249]
[1765073264234,67.14290703,132.6,132.59,0.05763249]
[1765073265636,67.14290703,132.6,132.59,3.30763249]
[1765073266523,64.34,132.6,132.59,3.30763249]
[1765073266735,0.05526359,132.62,132.59,3.30763249]
[1765073306763,6.84066359,132.62,132.59,0.05763249]
[1765073307064,4.3778197,132.61,132.59,0.05763249]
[1765073307266,4.3778197,132.61,132.59,3.16763249]
[1765073312271,4.3778197,132.61,132.59,0.05763249]
[1765073313080,4.3778197,132.61,132.59,3.16763249]
[1765073315082,64.34,132.6,132.59,3.16763249]
[1765073323194,0.05526359,132.62,132.59,3.16763249]
[1765073323487,64.34,132.61,132.59,3.16763249]
[1765073338202,68.7178197,132.61,132.59,0.05763249]
[1765073338499,2.8030151,132.6,132.59,0.05763249]
[1765073339908,2.8030151,132.6,132.59,3.14763249]
[1765073340811,2.8030151,132.6,132.59,0.05763249]
[1765073348513,64.34,132.61,132.59,3.14763249]
[1765073350008,2.85827869,132.62,132.59,3.14763249]
[1765073350209,67.19827869,132.62,132.59,3.14763249]
[1765073378133,67.19827869,132.62,132.59,0.05763249]
[1765073379630,0.05526359,132.62,132.59,3.14763249]
[1765073379839,0.05526359,132.62,132.61,17.21088711]
[1765073380331,0.05526359,132.62,132.61,3.09]
[1765073380734,0.05526359,132.62,132.61,17.21088711]
[1765073382337,0.05526359,132.62,132.61,3.09]
[1765073390141,0.05526359,132.62,132.59,17.3985196]
[1765073390342,2.85827869,132.62,132.59,0.05763249]
[1765073390848,2.8030151,132.6,132.59,0.05763249]
[1765073391841,2.8030151,132.6,132.59,3.27763249]
[1765073394639,67.15827869,132.62,132.59,3.27763249]
[1765073395346,2.85827869,132.62,132.59,3.27763249]
[1765073400453,0.05526359,132.62,132.59,3.27763249]
[1765073401556,0.05526359,132.62,132.59,0.05763249]
[1765073409459,0.05526359,132.62,132.59,3.13763249]
[1765073432378,0.05526359,132.62,132.6,3.14]
[1765073438881,0.05526359,132.62,132.59,0.05763249]
[1765073440782,0.05526359,132.62,132.59,3.19763249]
[1765073441993,6.84056359,132.62,132.59,0.05763249]
[1765073443384,4.37740412,132.61,132.59,0.05763249]
[1765073444295,4.37740412,132.61,132.59,3.19763249]
[1765073445691,0.05526359,132.62,132.59,3.19763249]
[1765073495025,2.80152854,132.61,132.59,3.19763249]
[1765073500126,0.05526359,132.62,132.59,3.19763249]
[1765073500315,2.80152854,132.61,132.59,3.19763249]
[1765073508529,2.85679213,132.62,132.59,3.19763249]
[1765073509029,0.05526359,132.62,132.59,3.19763249]
[1765073514131,0.05526359,132.62,132.59,17.3185196]
[1765073514336,0.05526359,132.62,132.6,3.05]
[1765073556577,112.55218585,132.69,132.6,17.17088711]
[1765073556879,174.15036036,132.69,132.64,3.25]
[1765073557583,6.7827,132.67,132.64,3.25]
[1765073557782,6.7827,132.67,132.65,3.25]
[1765073558074,6.7827,132.67,132.65,3.2998036]
[1765073558576,75.43856036,132.69,132.65,3.2998036]
[1765073558783,11.15856036,132.69,132.65,3.2998036]
[1765073559081,6.7815,132.69,132.66,3.25]
[1765073561181,6.7815,132.69,132.67,3.25]
[1765073566180,64.26,132.7,132.67,3.25]
[1765073577190,116.60236036,132.75,132.67,3.25]
[1765073577388,64.24,132.74,132.7,3.36088175]
[1765073581292,11.15656036,132.73,132.7,0.05088175]
[1765073584391,2.79811185,132.71,132.7,3.36088175]
[1765073584591,67.03811185,132.71,132.7,3.36088175]
[1765073585389,67.03811185,132.71,132.7,0.05088175]
[1765073588999,73.81891185,132.71,132.66,3.31]
[1765073589201,2.79811185,132.68,132.66,3.31]
[1765073589898,67.01811185,132.68,132.66,3.31]
[1765073590113,67.06801382,132.68,132.66,3.35896021]
[1765073596414,67.06801382,132.68,132.66,0.04896021]
[1765073600013,6.7825,132.67,132.66,0.04896021]
[1765073600219,67.06801382,132.68,132.66,0.04896021]
[1765073602524,2.84801382,132.68,132.66,3.16896021]
[1765073613128,0.04990197,132.68,132.66,3.16896021]
[1765073613331,9.57811185,132.72,132.66,3.16896021]
[1765073613527,9.57811185,132.72,132.68,3.12]
[1765073614532,9.57811185,132.72,132.67,9.39842925]
[1765073614533,9.57811185,132.72,132.69,3.17758283]
[1765073625031,2.79811185,132.7,132.69,0.05758283]
[1765073627732,67.01811185,132.7,132.69,0.05758283]
[1765073633435,6.7814,132.69,132.67,9.39842925]
[1765073633631,2.79811185,132.68,132.65,9.39842925]
[1765073633932,6.7814,132.69,132.67,3.13]
[1765073634132,64.22,132.69,132.67,3.13]
[1765073634531,64.26926931,132.69,132.67,3.18378913]
[1765073645144,64.26926931,132.69,132.67,0.05378913]
[1765073645343,2.79811185,132.68,132.67,0.05378913]
[1765073646445,68.64388505,132.69,132.67,0.05378913]
[1765073656355,75.42558505,132.69,132.67,0.05378913]
[1765073697400,180.91578505,132.69,132.67,0.05378913]
[1765073702001,116.69578505,132.69,132.67,0.05378913]
[1765073702198,64.24,132.68,132.67,0.05378913]
[1765073706698,0.04926931,132.69,132.67,12.51221838]
[1765073706896,0.04926931,132.69,132.68,3.06]
[1765073707300,61.32470625,132.7,132.69,3.06]
[1765073707500,61.32470625,132.7,132.69,12.45533837]
[1765073709101,51.21470625,132.7,132.69,13.95533837]
[1765073709300,222.95922046,132.72,132.7,3.06]
[1765073709603,67.01952833,132.72,132.71,3.06]
[1765073719706,64.22,132.72,132.71,3.06]
[1765073720009,2.79952833,132.74,132.71,3.06]
[1765073720802,6.14952833,132.74,132.71,3.06]
[1765073722304,2.79952833,132.74,132.71,3.06]
[1765073722909,6.14952833,132.74,132.71,3.06]
[1765073726009,3.35,132.73,132.71,3.06]
[1765073728816,6.14952833,132.74,132.71,3.06]
[1765073733313,3.35,132.73,132.71,3.06]
[1765073751129,3.35,132.73,132.71,12.45533837]
[1765073753125,3.35,132.73,132.72,12.45533837]
[1765073754634,3.35,132.73,132.72,3.06]
[1765073756526,3.06,132.75,132.72,3.06]
[1765073756723,3.06,132.76,132.74,12.43893537]
[1765073756924,3.06,132.76,132.74,12.49152976]
[1765073757539,3.06,132.76,132.74,0.05259439]
[1765073760933,3.06,132.76,132.74,9.43152976]
[1765073762234,3.06,132.76,132.74,0.05259439]
[1765073762733,3.06,132.76,132.74,9.43152976]
[1765073763238,3.06,132.76,132.74,0.05259439]
[1765073777743,3.24,132.75,132.74,0.05259439]
[1765073781750,3.24,132.75,132.72,9.37893537]
[1765073781953,3.24,132.75,132.71,12.44893537]
[1765073782850,11.14684709,132.76,132.71,12.44893537]
[1765073782851,3.24,132.73,132.72,0.05767225]
[1765073791061,3.24,132.73,132.72,3.12767225]
[1765073791256,3.24,132.73,132.72,0.05767225]
[1765073797962,3.24,132.73,132.72,9.43660762]
[1765073801665,0.05813239,132.74,132.73,3.07]
[1765073801851,0.05813239,132.74,132.73,12.44893537]
[1765073806761,3.24,132.79,132.74,3.07]
[1765073806970,3.24,132.79,132.76,3.07]
[1765073807865,3.24,132.79,132.76,3.12709494]
[1765073809661,3.24,132.79,132.76,12.49534832]
[1765073810470,3.24,132.79,132.76,3.12709494]
[1765073813266,3.24,132.79,132.77,3.33]
[1765073814476,3.24,132.79,132.76,0.05709494]
[1765073814664,3.24,132.79,132.76,3.38709494]
[1765073815170,3.18,132.78,132.76,0.05709494]
[1765073815974,9.9571,132.78,132.76,0.05709494]
[1765073816178,3.18,132.77,132.76,0.05709494]
[1765073818474,3.18,132.78,132.76,3.38709494]
[1765073820676,64.16,132.79,132.76,3.38709494]
[1765073820984,67.34,132.79,132.76,3.38709494]
[1765073821279,3.18,132.78,132.76,3.38709494]
[1765073823669,67.34,132.79,132.76,3.38709494]
[1765073825079,67.34,132.79,132.76,12.75534832]
[1765073825273,64.16,132.79,132.77,3.33]
[1765073825474,3.18,132.81,132.77,3.33]
[1765073825677,3.18,132.83,132.77,3.33]
[1765073825975,3.18,132.83,132.79,3.3871488]
[1765073828381,3.18,132.82,132.79,3.3871488]
[1765073834196,64.16,132.84,132.79,3.3871488]
[1765073834197,70.13354128,132.84,132.79,3.3871488]
[1765073834394,3.18,132.83,132.79,12.75540218]
[1765073834596,3.18,132.83,132.8,3.33]
[1765073844710,3.25,132.86,132.8,3.33]
[1765073844910,3.25,132.85,132.82,3.34162457]
[1765073845808,3.25,132.85,132.82,0.05162457]
[1765073846010,3.25,132.83,132.82,0.05162457]
[1765073868236,3.14,132.87,132.82,3.38162457]
[1765073870232,3.14,132.87,132.82,12.74987795]
[1765073873233,3.14,132.87,132.83,9.36825338]
[1765073874837,3.14,132.87,132.83,12.69825338]
[1765073876041,3.14,132.87,132.83,9.36825338]
[1765073877437,3.14,132.87,132.83,12.69825338]
[1765073880742,3.14,132.87,132.84,3.32]
[1765073880937,67.26,132.88,132.85,3.32]
[1765073881138,64.12,132.88,132.86,3.32]
[1765073881341,64.12,132.88,132.87,3.32]
[1765073881536,67.26,132.88,132.87,3.32]
[1765073883039,67.26,132.88,132.86,3.32]
[1765073883633,67.26,132.88,132.85,9.42528451]
[1765073883634,3.14,132.87,132.85,9.42528451]
[1765073884339,3.14,132.87,132.85,0.05703113]
[1765073884529,3.14,132.87,132.85,3.37703113]
[1765073889652,67.26,132.88,132.85,3.37703113]
[1765073890161,67.26,132.88,132.86,3.32]
[1765073890749,3.14,132.87,132.86,3.32]
[1765073891450,3.14,132.87,132.85,3.37703113]
[1765073891755,3.14,132.87,132.85,12.74528451]
[1765073894951,3.14,132.87,132.85,9.42528451]
[1765073895158,3.14,132.87,132.86,3.32]
[1765073896860,3.14,132.87,132.85,9.42528451]
[1765073897054,3.14,132.87,132.85,0.05703113]
[1765073898362,3.14,132.87,132.85,3.18703113]
[1765073907964,3.14,132.87,132.85,12.55528451]
[1765073918071,3.14,132.87,132.86,3.13]
[1765073918278,3.03,132.87,132.85,12.55528451]
[1765073919276,3.03,132.87,132.86,9.36825338]
[1765073920763,3.03,132.87,132.86,12.49825338]
[1765073927078,67.15,132.88,132.86,12.49825338]
[1765073928184,64.12,132.88,132.87,3.18]
[1765073928481,3.35,132.93,132.88,3.18]
[1765073928683,3.35,132.93,132.9,3.18]
[1765073928874,3.35,132.93,132.91,3.18]
[1765073929281,3.35,132.93,132.92,3.18]
[1765073929475,3.35,132.95,132.92,3.18]
[1765073929675,3.35,132.95,132.92,3.23630899]
[1765073936187,10.1185,132.95,132.92,3.23630899]
[1765073936483,3.33,132.94,132.92,0.05630899]
[1765073937190,6.7685,132.95,132.92,3.31630899]
[1765073937390,10.0985,132.95,132.92,3.31630899]
[1765073937591,3.33,132.94,132.92,3.31630899]
[1765073942291,3.33,132.96,132.92,3.31630899]
[1765073942489,64.1,132.97,132.92,3.31630899]
[1765073942699,67.43,132.97,132.92,3.31630899]
[1765073943580,3.33,132.96,132.92,3.31630899]
[1765073943786,67.43,132.97,132.92,3.31630899]
[1765073943987,3.33,132.96,132.92,3.31630899]
[1765073944391,64.1,132.97,132.92,3.31630899]
[1765073944588,67.43,132.97,132.92,3.31630899]
[1765073944990,3.33,132.96,132.92,3.31630899]
[1765073950316,64.1,132.97,132.92,3.31630899]
[1765073950515,67.43,132.97,132.92,3.31630899]
[1765073951515,3.33,132.96,132.92,3.31630899]
[1765073951815,67.43,132.97,132.92,3.31630899]
[1765073952815,3.33,132.96,132.93,3.26]
[1765073954011,3.33,132.96,132.94,3.26]
[1765073961924,67.29,132.97,132.94,3.26]
[1765073963125,3.19,132.97,132.94,3.26]
[1765073964220,5.97711004,132.98,132.94,3.26]
[1765073964522,5.97711004,132.98,132.96,3.29]
[1765073965728,3.19,132.97,132.96,3.29]
[1765073968123,3.19,132.99,132.96,3.29]
[1765073968324,3.19,132.96,132.95,3.34550815]
[1765073969228,3.19,132.96,132.95,0.05550815]
[1765073971131,67.27,133.01,132.95,3.34550815]
[1765073971327,3.19,133.0,132.95,3.34550815]
[1765073971533,3.19,133.0,132.96,3.29]
[1765073972232,3.19,133.0,132.97,3.29]
[1765073976734,66.86711004,133.01,132.96,9.34907585]
[1765073976735,3.19,132.98,132.96,9.34907585]
[1765073976920,3.19,132.98,132.96,12.63907585]
[1765073977433,3.19,132.98,132.96,3.29]
[1765073984240,3.19,132.98,132.96,12.63907585]
[1765073984439,3.19,132.98,132.97,3.29]
[1765073986336,3.19,132.98,132.95,9.404584]
[1765073986537,3.19,132.98,132.95,12.694584]
[1765073987341,3.19,132.98,132.95,9.404584]
[1765073987841,3.19,132.98,132.95,12.624584]
[1765073988646,3.19,132.98,132.96,3.22]
[1765073989741,3.19,132.98,132.95,12.624584]
[1765073995151,3.19,132.98,132.96,3.19]
[1765073997854,3.19,132.98,132.96,12.53907585]
[1765073999065,3.19,132.98,132.96,9.34907585]
[1765074000171,3.19,132.98,132.95,9.404584]
[1765074001064,3.19,132.98,132.95,12.594584]
[1765074002472,3.29,132.96,132.95,9.404584]
[1765074002658,3.29,132.98,132.96,3.19]
[1765074002862,3.29,132.98,132.97,3.19]
[1765074003062,3.29,133.0,132.97,12.53907585]
[1765074003262,3.29,133.0,132.97,12.58787558]
[1765074010669,3.29,133.02,132.98,3.19]
[1765074010867,3.29,133.02,132.99,3.19]
[1765074018274,3.29,133.02,132.99,12.53907585]
[1765074018771,3.29,133.02,133.0,3.34]
[1765074018973,3.29,133.02,133.01,3.34]
[1765074019672,3.29,133.02,133.0,12.74202478]
[1765074020274,3.29,133.02,133.01,3.34]
[1765074020976,3.29,133.02,133.0,12.74202478]
[1765074021874,67.31,133.03,133.01,3.34]
[1765074022382,3.23,133.02,133.01,3.34]
[1765074025380,67.31,133.03,133.01,3.34]
[1765074025878,64.08,133.03,133.01,3.34]
[1765074026179,3.23,133.02,133.01,3.34]
[1765074033884,3.23,133.02,133.0,3.39294893]
[1765074036784,67.31,133.03,133.0,3.39294893]
[1765074037677,3.23,133.02,133.0,3.39294893]
[1765074040200,67.31,133.03,133.0,3.39294893]
[1765074040485,64.08,133.03,133.01,3.34]
[1765074041487,3.23,133.08,133.02,3.34]
[1765074041684,3.23,133.08,133.05,3.34]
[1765074042180,9.9913,133.09,133.05,3.34]
[1765074043185,3.23,133.08,133.05,3.34]
[1765074043792,3.23,133.08,133.04,3.39557496]
[1765074044190,3.23,133.06,133.04,0.05557496]
[1765074044400,3.23,133.05,133.04,0.05557496]
[1765074047493,9.9931,133.05,133.04,0.05557496]
[1765074056002,3.23,133.05,133.04,0.05557496]
[1765074061104,67.12,133.06,133.04,3.17557496]
[1765074062403,3.06,133.05,133.04,0.05557496]
[1765074072409,5.84467416,133.05,133.04,0.05557496]
[1765074073511,3.06,133.03,133.01,9.34907585]
[1765074073704,3.06,133.02,133.01,9.34907585]
[1765074075316,3.06,133.02,133.01,12.46907585]
[1765074075603,3.06,133.02,133.0,9.39859502]
[1765074075910,5.84467416,133.01,133.0,9.39859502]
[1765074076111,5.84467416,133.01,133.0,0.04951917]
[1765074079306,3.21,133.0,132.96,12.37907585]
[1765074079610,3.21,132.98,132.96,9.34907585]
[1765074080201,3.26737847,132.98,132.96,9.40648507]
[1765074080606,5.99467416,132.97,132.96,9.40648507]
[1765074080806,5.99467416,132.97,132.96,0.05740922]
[1765074088824,3.21,132.95,132.91,12.37907585]
[1765074089020,3.21,132.93,132.91,12.37907585]
[1765074089420,3.21,132.93,132.91,3.03]
[1765074089823,3.2607825,132.93,132.91,3.0788415]
[1765074093326,0.0507825,132.93,132.91,3.0788415]
[1765074094512,0.0507825,132.93,132.92,3.03]
[1765074103737,3.2607825,132.93,132.91,0.0488415]
[1765074104039,3.2607825,132.93,132.91,3.0788415]
[1765074104441,0.0507825,132.93,132.91,3.0788415]
[1765074108748,3.1207825,132.93,132.91,3.0788415]
[1765074110647,5.90545666,132.93,132.91,3.0788415]
[1765074115045,3.24,132.92,132.91,0.0488415]
[1765074121053,3.24,132.92,132.91,3.3988415]
[1765074121857,3.24,132.92,132.91,0.0488415]
[1765074131258,3.24,132.92,132.91,9.39791735]
[1765074132062,67.4107825,132.93,132.91,12.74791735]
[1765074132260,3.24,132.92,132.91,12.74791735]
[1765074132560,3.24,132.92,132.91,9.39791735]
[1765074136563,3.24,132.95,132.92,3.35]
[1765074136758,3.24,132.95,132.93,12.68186204]
[1765074137757,3.2965075,132.95,132.93,12.7326336]
[1765074140165,3.2965075,132.95,132.94,9.33186204]
[1765074142367,3.2965075,132.95,132.94,12.53186204]
[1765074142566,0.0565075,132.95,132.94,12.53186204]
[1765074145571,3.2765075,132.95,132.94,9.33186204]
[1765074145756,3.2765075,132.95,132.94,12.53186204]
[1765074146773,3.2765075,132.95,132.93,12.5826336]
[1765074148475,3.2765075,132.95,132.93,9.3826336]
[1765074148982,3.2765075,132.95,132.93,12.5826336]
[1765074151669,3.2765075,132.95,132.93,0.05077156]
[1765074158375,3.2765075,132.95,132.93,3.25077156]
[1765074158678,64.1765075,132.95,132.94,12.53186204]
[1765074161775,3.22,132.94,132.93,9.3826336]
[1765074165082,3.22,132.94,132.93,0.05077156]
[1765074174194,3.22,132.94,132.9,3.2]
[1765074174390,3.22,132.94,132.89,14.12088711]
[1765074174598,3.22,132.92,132.9,3.3]
[1765074174789,64.1,132.93,132.9,3.3]
[1765074175190,64.14883589,132.93,132.9,3.35114548]
[1765074176600,67.36883589,132.93,132.9,3.35114548]
[1765074181198,0.04883589,132.93,132.9,3.35114548]
[1765074181510,3.27883589,132.93,132.91,3.05]
[1765074190113,0.04883589,132.93,132.91,3.05]
[1765074192512,3.27883589,132.93,132.91,3.05]
[1765074195615,3.27883589,132.93,132.91,17.17088711]
[1765074196118,0.04883589,132.93,132.92,3.05]
[1765074196412,0.04883589,132.93,132.92,17.17088711]
[1765074200922,0.04883589,132.93,132.92,3.05]
[1765074201622,3.16883589,132.93,132.92,3.05]
[1765074202521,0.04883589,132.93,132.92,3.05]
[1765074202824,3.16883589,132.93,132.91,17.40088711]
[1765074205028,0.04883589,132.93,132.92,3.28]
[1765074213731,3.16883589,132.93,132.91,17.40088711]
[1765074213925,0.04883589,132.93,132.92,3.28]
[1765074218631,3.12,132.95,132.92,3.28]
[1765074218838,3.12,132.96,132.94,12.60253896]
[1765074219638,3.17259971,132.96,132.94,12.65110422]
[1765074220341,3.17259971,132.96,132.95,3.28]
[1765074222743,3.17259971,132.96,132.94,9.37110422]
[1765074222930,3.17259971,132.96,132.94,12.65110422]
[1765074223134,3.17259971,132.96,132.95,3.28]
[1765074223437,3.17259971,132.96,132.94,12.65110422]
[1765074225741,3.17259971,132.96,132.94,9.37110422]
[1765074226640,5.90751318,132.95,132.94,12.65110422]
[1765074227245,5.90751318,132.95,132.94,9.37110422]
[1765074227946,5.90751318,132.95,132.94,0.04856526]
[1765074251675,69.98751318,132.95,132.94,0.04856526]
[1765074256382,67.2,132.95,132.94,0.04856526]
[1765074258471,71.55673604,132.95,132.94,0.04856526]
[1765074264488,67.2,132.95,132.94,0.04856526]
[1765074288809,3.09,132.94,132.92,9.32253896]
[1765074289013,67.17,132.93,132.92,9.32253896]
[1765074290302,67.17,132.93,132.91,12.56661392]
[1765074290506,3.09,132.92,132.91,9.37661392]
[1765074292721,7.44673604,132.92,132.91,0.05407496]
[1765074293820,3.09,132.9,132.88,9.32253896]
[1765074294015,67.19,132.89,132.87,12.38253896]
[1765074294216,3.09,132.88,132.87,12.38253896]
[1765074294832,67.24492248,132.89,132.87,12.38253896]
[1765074295322,3.09,132.88,132.86,3.13570791]
[1765074301518,3.09,132.88,132.86,0.05570791]
[1765074302531,9.8622,132.88,132.86,0.05570791]
[1765074302730,3.31,132.87,132.86,0.05570791]
[1765074309830,64.12,132.88,132.86,3.13570791]
[1765074313536,67.43,132.88,132.86,3.13570791]
[1765074324843,3.34,132.87,132.86,3.13570791]
[1765074325841,3.34,132.87,132.86,0.05570791]
[1765074326140,6.13083893,132.87,132.86,0.05570791]
[1765074346648,3.34,132.84,132.82,9.32253896]
[1765074346854,3.34,132.82,132.8,9.32253896]
[1765074347044,3.34,132.8,132.79,14.12088711]
[1765074347242,67.46,132.8,132.78,14.12088711]
[1765074347446,3.05,132.79,132.78,3.13]
[1765074347647,5.84083893,132.79,132.77,17.30272569]
[1765074347848,3.05,132.78,132.77,0.05183858]
[1765074348347,3.05,132.78,132.77,9.39738148]
[1765074349445,3.05,132.78,132.77,12.52738148]
[1765074351363,0.05245424,132.8,132.77,14.02738148]
[1765074351553,0.05245424,132.8,132.79,3.13]
[1765074351753,0.05245424,132.8,132.79,12.4755429]
[1765074353260,0.05245424,132.8,132.79,3.13]
[1765074385193,0.05245424,132.8,132.79,12.4755429]
[1765074385490,0.05245424,132.8,132.79,3.13]
[1765074386290,0.05245424,132.8,132.79,12.4755429]
[1765074389191,0.05245424,132.8,132.79,3.13]
[1765074393994,0.05245424,132.8,132.79,17.25088711]
[1765074400703,0.05245424,132.8,132.79,3.13]
[1765074401403,0.05245424,132.8,132.79,17.19180573]
[1765074402103,3.35245424,132.8,132.79,17.19180573]
[1765074407506,0.05245424,132.8,132.79,17.19180573]
[1765074408106,0.05245424,132.8,132.79,3.13]
[1765074410710,0.05245424,132.8,132.79,12.50318535]
[1765074416612,0.05245424,132.8,132.79,3.13]
[1765074419306,0.05245424,132.8,132.79,12.49790915]
[1765074432422,0.05245424,132.8,132.79,3.13]
[1765074434623,0.05245424,132.8,132.79,12.49365458]
[1765074435419,0.05245424,132.8,132.79,3.13]
[1765074441122,0.05245424,132.8,132.79,12.49365458]
[1765074444621,0.05245424,132.8,132.79,3.13]
[1765074466146,0.05245424,132.8,132.79,17.18186373]
[1765074466346,0.05245424,132.8,132.79,3.13]
[1765074467150,0.05245424,132.8,132.79,17.18186373]
[1765074469246,0.05245424,132.8,132.79,3.13]
[1765074475851,3.10245424,132.8,132.79,3.13]
[1765074477245,0.05245424,132.8,132.79,3.13]
[1765074477649,0.05245424,132.8,132.79,12.49266615]
[1765074488579,12.61874106,132.83,132.8,3.36]
[1765074488775,12.61874106,132.83,132.81,3.36]
[1765074489376,5.84404106,132.83,132.81,3.36]
[1765074489575,5.90124419,132.83,132.81,3.40915847]
[1765074500484,3.10720313,132.83,132.81,3.40915847]
[1765074502875,64.14,132.82,132.81,3.40915847]
[1765074508686,67.31,132.82,132.81,3.40915847]
[1765074510786,64.14,132.82,132.81,3.40915847]
[1765074512283,74.0848,132.82,132.81,0.04915847]
[1765074512586,3.17,132.81,132.79,9.36383282]
[1765074513382,3.17,132.81,132.78,12.40383282]
[1765074513579,3.22130586,132.81,132.78,12.45590137]